[Event "WJCC U20 Girls 2019"]
[Site "New Delhi"]
[Date "2019.10.15"]
[Round "1.36"]
[White "Potluri Supreetha"]
[Black "Chitlange Sakshi"]
[Result "1-0"]
[ECO "E06"]
[WhiteElo "1767"]
[BlackElo "2175"]
[Annotator "NA"]
[PlyCount "85"]
[EventDate "2019.10.15"]
[EventType "swiss"]
[EventCountry "IND"]
[SourceTitle "playchess.com"]
[Source "ChessBase"]
[SourceQuality "1"]
[TimeControl "40/5400+30:1800+30"]

1. d4 {[%emt 0:00:00]} d5 {[%emt 0:00:00]} 2. Nf3 {[%emt 0:00:00]} Nf6 {[%emt 0:00:18]} 3. c4 {[%emt 0:00:00]} e6 {[%emt 0:00:41]} 4. g3 {[%emt 0:00:17]} Be7 {[%emt 0:01:33]} 5. Bg2 {[%emt 0:00:24]} O-O {[%emt 0:00:26]} 6. O-O {[%emt 0:00:23]} c6 {[%emt 0:00:49]} 7. Qc2 {[%emt 0:00:14]} b6 {[%emt 0:00:10]} 8. Nbd2 {[%emt 0:00:33]} Bb7 {[%emt 0:00:44]} 9. Rd1 {[%emt 0:13:34]} Na6 {[%emt 0:04:20]} 10. e4 {[%emt 0:27:43]} Rc8 {[%emt 0:05:01]} 11. e5 {[%emt 0:13:40]} Nd7 {[%emt 0:00:58]} 12. a3 {[%emt 0:03:29]} c5 {[%emt 0:02:00]} 13. dxc5 {[%emt 0:05:31]} Naxc5 {[%emt 0:03:24]} 14. b4 {[%emt 0:08:44]} Na6 {[%emt 0:08:58]} 15. Qd3 {[%emt 0:02:22]} Qc7 {[%emt 0:08:46]} 16. cxd5 {[%emt 0:08:06]} Nxe5 {[%emt 0:01:35]} 17. Nxe5 {[%emt 0:02:09]} Qxe5 {[%emt 0:00:02]} 18. Rb1 {[%emt 0:01:53]} exd5 {[%emt 0:03:09]} 19. Bb2 {[%emt 0:01:37]} Qd6 {[%emt 0:04:12]} 20. Nb3 {[%emt 0:02:56]} Nc7 {[%emt 0:05:19]} 21. Nd4 {[%emt 0:03:25]} g6 {[%emt 0:06:38]} 22. Qc3 {[%emt 0:03:16]} f6 {[%emt 0:08:31]} 23. Bh3 {[%emt 0:00:20]} Rce8 {[%emt 0:02:48]} 24. Rbc1 {[%emt 0:00:29]} Bd8 {[%emt 0:00:19]} 25. b5 {[%emt 0:00:26]} Rf7 {[%emt 0:05:48]} 26. a4 {[%emt 0:00:17]} Qf8 {[%emt 0:01:20]} 27. Ba3 {[%emt 0:00:48]} Be7 {[%emt 0:03:53]} 28. Bxe7 {[%emt 0:00:36]} Rfxe7 {[%emt 0:00:22]} 29. Nc6 {[%emt 0:00:41]} Bxc6 {[%emt 0:01:31]} 30. bxc6 {[%emt 0:00:28]} f5 {[%emt 0:03:04]} 31. a5 {[%emt 0:00:31]} b5 {[%emt 0:04:29]} 32. Bg2 {[%emt 0:00:33]} Rd8 {[%emt 0:05:10]} 33. Qc5 {[%emt 0:00:31]} Qe8 {[%emt 0:06:09]} 34. Qxa7 {[%emt 0:00:32]} d4 {[%emt 0:03:07]} 35. Qc5 {[%emt 0:00:27]} Re5 {[%emt 0:00:19]} 36. Qb4 {[%emt 0:00:28]} Ne6 {[%emt 0:01:23]} 37. c7 {[%emt 0:00:26]} Rc8 {[%emt 0:00:26]} 38. Qd6 {[%emt 0:00:17]} Re2 {[%emt 0:00:41]} 39. Re1 {[%emt 0:00:49]} Rxe1+ {[%emt 0:00:34]} 40. Rxe1 {[%emt 0:00:05]} Rxc7 {[%emt 0:00:31]} 41. Rxe6 {[%emt 0:30:15]} Qc8 {[%emt 0:01:21]} 42. Bc6 {[%emt 0:00:00]} Kf7 {[%emt 0:01:09]} 43. Re8 {[%emt 0:00:00]} 1-0

[Event "WJCC U20 Girls 2019"]
[Site "New Delhi"]
[Date "2019.10.15"]
[Round "1.38"]
[White "Shivika Rohilla"]
[Black "Sapale Saloni"]
[Result "0-1"]
[ECO "C05"]
[WhiteElo "1721"]
[BlackElo "2142"]
[Annotator "NA"]
[PlyCount "48"]
[EventDate "2019.10.15"]
[EventType "swiss"]
[EventCountry "IND"]
[SourceTitle "playchess.com"]
[Source "ChessBase"]
[SourceQuality "1"]
[TimeControl "40/5400+30:1800+30"]

1. e4 {[%emt 0:00:00]} e6 {[%emt 0:00:00]} 2. d4 {[%emt 0:00:00]} d5 {[%emt 0:00:00]} 3. Nd2 {[%emt 0:00:00]} Nf6 {[%emt 0:00:13]} 4. e5 {[%emt 0:00:29]} Nfd7 {[%emt 0:00:09]} 5. Bd3 {[%emt 0:01:41]} c5 {[%emt 0:00:11]} 6. c3 {[%emt 0:00:20]} Nc6 {[%emt 0:00:12]} 7. Ngf3 {[%emt 0:00:41]} cxd4 {[%emt 0:03:41]} 8. cxd4 {[%emt 0:00:16]} f6 {[%emt 0:00:10]} 9. Ng5 {[%emt 0:06:04]} fxg5 {[%emt 0:26:20]} 10. Qh5+ {[%emt 0:00:45]} g6 {[%emt 0:00:31]} 11. Bxg6+ {[%emt 0:00:19]} hxg6 {[%emt 0:00:08]} 12. Qxg6+ {[%emt 0:00:44]} Ke7 {[%emt 0:00:26]} 13. Nf3 {[%emt 0:00:56]} Ndxe5 {[%emt 0:15:54]} 14. dxe5 {[%emt 0:06:50]} Kd7 {[%emt 0:04:26]} 15. Nxg5 {[%emt 0:09:57]} Bb4+ {[%emt 0:03:55]} 16. Kf1 {[%emt 0:01:17]} Qe7 {[%emt 0:00:41]} 17. Nf3 {[%emt 0:13:47]} b6 {[%emt 0:04:17]} 18. a3 {[%emt 0:02:50]} Ba6+ {[%emt 0:01:35]} 19. Kg1 {[%emt 0:02:21]} Rag8 {[%emt 0:03:41]} 20. Qc2 {[%emt 0:04:19]} Nd4 {[%emt 0:11:16]} 21. Nxd4 {[%emt 0:05:02]} Rxg2+ {[%emt 0:00:56]} 22. Kxg2 {[%emt 0:00:16]} Qg7+ {[%emt 0:00:08]} 23. Kf3 {[%emt 0:01:41]} Rh3+ {[%emt 0:00:07]} 24. Kf4 {[%emt 0:03:21]} Qh6+ {[%emt 0:00:08]} 0-1

[Event "WJCC U20 Girls 2019"]
[Site "New Delhi"]
[Date "2019.10.15"]
[Round "1.39"]
[White "Nilssen, Ellen Fredericia"]
[Black "Rathi Dhanashree"]
[Result "1-0"]
[ECO "D55"]
[WhiteElo "2137"]
[BlackElo "1692"]
[Annotator "NA"]
[PlyCount "65"]
[EventDate "2019.10.15"]
[EventType "swiss"]
[EventCountry "IND"]
[SourceTitle "playchess.com"]
[Source "ChessBase"]
[SourceQuality "1"]
[TimeControl "40/5400+30:1800+30"]

1. d4 {[%emt 0:00:00]} d5 {[%emt 0:00:00]} 2. c4 {[%emt 0:00:00]} e6 {[%emt 0:00:21]} 3. Nf3 {[%emt 0:00:00]} Nf6 {[%emt 0:00:18]} 4. Nc3 {[%emt 0:00:24]} Be7 {[%emt 0:00:15]} 5. Bg5 {[%emt 0:00:10]} O-O {[%emt 0:00:24]} 6. e3 {[%emt 0:00:13]} c6 {[%emt 0:00:29]} 7. Qc2 {[%emt 0:00:38]} Nbd7 {[%emt 0:01:10]} 8. cxd5 {[%emt 0:00:23]} exd5 {[%emt 0:00:11]} 9. Bd3 {[%emt 0:00:12]} Re8 {[%emt 0:00:36]} 10. h3 {[%emt 0:01:22]} Nf8 {[%emt 0:00:32]} 11. O-O {[%emt 0:02:12]} g6 {[%emt 0:01:31]} 12. Bxf6 {[%emt 0:12:34]} Bxf6 {[%emt 0:00:19]} 13. b4 {[%emt 0:00:06]} Qd6 {[%emt 0:06:29]} 14. b5 {[%emt 0:03:54]} Bd7 {[%emt 0:06:16]} 15. bxc6 {[%emt 0:06:16]} bxc6 {[%emt 0:05:07]} 16. Na4 {[%emt 0:03:00]} Ne6 {[%emt 0:00:38]} 17. Rac1 {[%emt 0:03:00]} Qa3 {[%emt 0:13:47]} 18. Nd2 {[%emt 0:00:00]} Rab8 {[%emt 0:10:00]} 19. Nb1 {[%emt 0:18:48]} Qd6 {[%emt 0:08:26]} 20. Nbc3 {[%emt 0:03:32]} Rec8 {[%emt 0:06:29]} 21. Ne2 {[%emt 0:03:08]} Qa3 {[%emt 0:04:19]} 22. Rb1 {[%emt 0:06:33]} c5 {[%emt 0:06:26]} 23. Nxc5 {[%emt 0:04:19]} Nxc5 {[%emt 0:01:16]} 24. dxc5 {[%emt 0:01:45]} Rb2 {[%emt 0:05:07]} 25. Rxb2 {[%emt 0:00:40]} Bxb2 {[%emt 0:00:14]} 26. Rb1 {[%emt 0:00:39]} Rxc5 {[%emt 0:00:29]} 27. Qxb2 {[%emt 0:03:00]} Qxd3 {[%emt 0:00:33]} 28. Nf4 {[%emt 0:01:32]} Qe4 {[%emt 0:05:32]} 29. Rd1 {[%emt 0:06:49]} Rb5 {[%emt 0:05:11]} 30. Qf6 {[%emt 0:03:49]} Be6 {[%emt 0:04:10]} 31. Kh2 {[%emt 0:00:40]} Qb4 {[%emt 0:07:58]} 32. Rc1 {[%emt 0:02:08]} Qd6 {[%emt 0:00:46]} 33. Rc8+ {[%emt 0:00:14]} 1-0

[Event "WJCC U20 Girls 2019"]
[Site "New Delhi"]
[Date "2019.10.15"]
[Round "1.40"]
[White "Lohani, Sujana"]
[Black "Harshita Guddanti"]
[Result "0-1"]
[ECO "E04"]
[WhiteElo "1671"]
[BlackElo "2123"]
[Annotator "NA"]
[PlyCount "26"]
[EventDate "2019.10.15"]
[EventType "swiss"]
[EventCountry "IND"]
[SourceTitle "playchess.com"]
[Source "ChessBase"]
[SourceQuality "1"]
[TimeControl "40/5400+30:1800+30"]

1. d4 {[%emt 0:00:00]} Nf6 {[%emt 0:00:04]} 2. Nf3 {[%emt 0:00:00]} e6 {[%emt 0:00:27]} 3. c4 {[%emt 0:00:10]} d5 {[%emt 0:00:25]} 4. g3 {[%emt 0:00:37]} dxc4 {[%emt 0:00:37]} 5. Bg2 {[%emt 0:00:26]} Bb4+ {[%emt 0:00:43]} 6. Bd2 {[%emt 0:01:14]} c5 {[%emt 0:00:29]} 7. Bxb4 {[%emt 0:08:02]} cxb4 {[%emt 0:00:15]} 8. Qc2 {[%emt 0:02:06]} b5 {[%emt 0:09:59]} 9. O-O {[%emt 0:17:42]} Bb7 {[%emt 0:02:12]} 10. Nbd2 {[%emt 0:01:55]} Nc6 {[%emt 0:08:16]} 11. e3 {[%emt 0:04:05]} Rc8 {[%emt 0:05:12]} 12. Rac1 {[%emt 0:11:41]} Qb6 {[%emt 0:04:20]} 13. Ng5 {[%emt 0:04:48]} Na5 {[%emt 0:02:49]} 0-1

[Event "WJCC U20 Girls 2019"]
[Site "New Delhi"]
[Date "2019.10.15"]
[Round "1.41"]
[White "Avetisyan, Mariam"]
[Black "Arushi Kotwal"]
[Result "1-0"]
[ECO "D85"]
[WhiteElo "2110"]
[BlackElo "1657"]
[Annotator "NA"]
[PlyCount "32"]
[EventDate "2019.10.15"]
[EventType "swiss"]
[EventCountry "IND"]
[SourceTitle "playchess.com"]
[Source "ChessBase"]
[SourceQuality "1"]
[TimeControl "40/5400+30:1800+30"]

1. d4 {[%emt 0:00:00]} Nf6 {[%emt 0:00:00]} 2. c4 {[%emt 0:00:00]} g6 {[%emt 0:00:00]} 3. Nc3 {[%emt 0:00:00]} d5 {[%emt 0:00:00]} 4. cxd5 {[%emt 0:00:00]} Nxd5 {[%emt 0:00:00]} 5. Bd2 {[%emt 0:00:00]} Bg7 {[%emt 0:00:04]} 6. e4 {[%emt 0:00:00]} Nxc3 {[%emt 0:00:13]} 7. Bxc3 {[%emt 0:00:04]} O-O {[%emt 0:00:15]} 8. Be2 {[%emt 0:01:49]} Nc6 {[%emt 0:02:49]} 9. d5 {[%emt 0:01:56]} Bxc3+ {[%emt 0:01:04]} 10. bxc3 {[%emt 0:00:05]} Na5 {[%emt 0:00:16]} 11. Qd2 {[%emt 0:13:22]} c6 {[%emt 0:08:22]} 12. c4 {[%emt 0:05:19]} cxd5 {[%emt 0:00:48]} 13. cxd5 {[%emt 0:00:55]} b6 {[%emt 0:02:42]} 14. h4 {[%emt 0:06:10]} Qd6 {[%emt 0:06:16]} 15. h5 {[%emt 0:07:51]} Qe5 {[%emt 0:23:17]} 16. Rb1 {[%emt 0:04:24]} Qa1 {[%emt 0:11:58]} 1-0

[Event "WJCC U20 Girls 2019"]
[Site "New Delhi"]
[Date "2019.10.15"]
[Round "1.42"]
[White "Rousseau, Christilla"]
[Black "Blazeka, Mihaela"]
[Result "0-1"]
[ECO "A45"]
[WhiteElo "1648"]
[BlackElo "2109"]
[Annotator "NA"]
[PlyCount "29"]
[EventDate "2019.10.15"]
[EventType "swiss"]
[EventCountry "IND"]
[SourceTitle "playchess.com"]
[Source "ChessBase"]
[SourceQuality "1"]
[TimeControl "40/5400+30:1800+30"]

1. d4 {[%emt 0:00:00]} Nf6 {[%emt 0:00:00]} 2. Bf4 {[%emt 0:00:00]} e6 {[%emt 0:00:12]} 3. e3 {[%emt 0:00:20]} b6 {[%emt 0:00:38]} 4. Nf3 {[%emt 0:00:58]} Bb7 {[%emt 0:00:12]} 5. h3 {[%emt 0:03:35]} g6 {[%emt 0:02:03]} 6. Be2 {[%emt 0:01:25]} Bg7 {[%emt 0:00:09]} 7. O-O {[%emt 0:01:16]} d6 {[%emt 0:01:02]} 8. c4 {[%emt 0:02:29]} Nbd7 {[%emt 0:00:11]} 9. Nc3 {[%emt 0:02:23]} O-O {[%emt 0:04:05]} 10. Rc1 {[%emt 0:03:52]} Nh5 {[%emt 0:06:12]} 11. Bh2 {[%emt 0:03:15]} f5 {[%emt 0:00:30]} 12. b4 {[%emt 0:14:58]} Qe7 {[%emt 0:05:16]} 13. Nb5 {[%emt 0:09:24]} Ndf6 {[%emt 0:28:47]} 14. Bxd6 {[%emt 0:06:12]} cxd6 {[%emt 0:00:30]} 15. c5 {[%emt 0:12:01]} 0-1

[Event "WJCC U20 Girls 2019"]
[Site "New Delhi"]
[Date "2019.10.15"]
[Round "1.43"]
[White "Afraoui, Anaelle"]
[Black "Dahampriya, H K T Dewnethmie"]
[Result "1-0"]
[ECO "B91"]
[WhiteElo "2106"]
[BlackElo "1629"]
[Annotator "NA"]
[PlyCount "131"]
[EventDate "2019.10.15"]
[EventType "swiss"]
[EventCountry "IND"]
[SourceTitle "playchess.com"]
[Source "ChessBase"]
[SourceQuality "1"]
[TimeControl "40/5400+30:1800+30"]

1. e4 {[%emt 0:00:00]} c5 {[%emt 0:00:00]} 2. Nf3 {[%emt 0:00:00]} d6 {[%emt 0:00:00]} 3. d4 {[%emt 0:00:00]} cxd4 {[%emt 0:00:00]} 4. Nxd4 {[%emt 0:00:10]} Nf6 {[%emt 0:00:00]} 5. Nc3 {[%emt 0:00:34]} a6 {[%emt 0:00:00]} 6. g3 {[%emt 0:00:25]} e5 {[%emt 0:00:20]} 7. Nde2 {[%emt 0:00:59]} Be7 {[%emt 0:01:03]} 8. Bg2 {[%emt 0:00:18]} Nc6 {[%emt 0:00:33]} 9. a4 {[%emt 0:02:58]} O-O {[%emt 0:02:02]} 10. O-O {[%emt 0:00:42]} b6 {[%emt 0:04:36]} 11. h3 {[%emt 0:03:20]} Bb7 {[%emt 0:02:27]} 12. g4 {[%emt 0:02:05]} Rc8 {[%emt 0:02:04]} 13. Ng3 {[%emt 0:08:25]} Nd4 {[%emt 0:06:42]} 14. Be3 {[%emt 0:01:59]} Ne6 {[%emt 0:05:07]} 15. Nf5 {[%emt 0:11:09]} Re8 {[%emt 0:01:26]} 16. g5 {[%emt 0:04:29]} Nd7 {[%emt 0:05:59]} 17. Nxd6 {[%emt 0:02:21]} Bxd6 {[%emt 0:00:06]} 18. Qxd6 {[%emt 0:00:15]} Rc6 {[%emt 0:01:09]} 19. Qd2 {[%emt 0:01:10]} Qc8 {[%emt 0:01:09]} 20. Rfd1 {[%emt 0:02:50]} Ndf8 {[%emt 0:00:38]} 21. Rac1 {[%emt 0:04:18]} Ng6 {[%emt 0:13:05]} 22. Nd5 {[%emt 0:02:04]} b5 {[%emt 0:01:00]} 23. a5 {[%emt 0:08:07]} Nef4 {[%emt 0:08:35]} 24. Nxf4 {[%emt 0:08:44]} Nxf4 {[%emt 0:00:35]} 25. Bxf4 {[%emt 0:00:16]} exf4 {[%emt 0:00:06]} 26. Qxf4 {[%emt 0:00:17]} Rc4 {[%emt 0:01:14]} 27. Qf5 {[%emt 0:07:32]} Bxe4 {[%emt 0:05:43]} 28. Bxe4 {[%emt 0:05:06]} Rcxe4 {[%emt 0:00:32]} 29. Qxc8 {[%emt 0:00:09]} Rxc8 {[%emt 0:00:07]} 30. Rd6 {[%emt 0:03:20]} Re6 {[%emt 0:00:20]} 31. Rcd1 {[%emt 0:01:16]} Kf8 {[%emt 0:01:07]} 32. Rxe6 {[%emt 0:02:07]} fxe6 {[%emt 0:00:10]} 33. c3 {[%emt 0:00:04]} Ke7 {[%emt 0:00:35]} 34. Kg2 {[%emt 0:00:12]} Rc4 {[%emt 0:00:26]} 35. Kf3 {[%emt 0:02:51]} Rh4 {[%emt 0:03:50]} 36. Kg3 {[%emt 0:11:03]} Rc4 {[%emt 0:00:50]} 37. Rd3 {[%emt 0:01:05]} b4 {[%emt 0:02:30]} 38. Kf3 {[%emt 0:01:18]} b3 {[%emt 0:03:01]} 39. Ke3 {[%emt 0:03:50]} Rc5 {[%emt 0:01:28]} 40. f4 {[%emt 0:00:45]} Rxa5 {[%emt 0:00:57]} 41. c4 {[%emt 0:30:35]} Ra4 {[%emt 0:33:46]} 42. Kd4 {[%emt 0:00:00]} Rb4 {[%emt 0:00:00]} 43. Kc3 {[%emt 0:00:00]} Rb7 {[%emt 0:00:00]} 44. c5 {[%emt 0:00:00]} a5 {[%emt 0:00:00]} 45. Rd4 {[%emt 0:00:00]} Rb5 {[%emt 0:00:00]} 46. c6 {[%emt 0:00:00]} Rc5+ {[%emt 0:00:00]} 47. Rc4 {[%emt 0:00:00]} Rxc4+ {[%emt 0:00:00]} 48. Kxc4 {[%emt 0:00:00]} Kd6 {[%emt 0:00:00]} 49. Kb5 {[%emt 0:00:00]} Kc7 {[%emt 0:00:00]} 50. Kxa5 {[%emt 0:00:00]} Kxc6 {[%emt 0:00:00]} 51. Kb4 {[%emt 0:00:00]} Kd5 {[%emt 0:00:00]} 52. Kxb3 {[%emt 0:00:00]} Ke4 {[%emt 0:00:00]} 53. Kc2 {[%emt 0:00:00]} Kxf4 {[%emt 0:00:00]} 54. b4 {[%emt 0:00:00]} Ke4 {[%emt 0:00:00]} 55. Kc3 {[%emt 0:00:00]} Kd5 {[%emt 0:00:00]} 56. Kd3 {[%emt 0:00:00]} h6 {[%emt 0:00:00]} 57. g6 {[%emt 0:00:00]} h5 {[%emt 0:00:00]} 58. b5 {[%emt 0:00:00]} h4 {[%emt 0:00:00]} 59. b6 {[%emt 0:00:00]} Kc6 {[%emt 0:00:00]} 60. Ke4 {[%emt 0:00:00]} Kxb6 {[%emt 0:00:00]} 61. Ke5 {[%emt 0:00:00]} Kc5 {[%emt 0:00:00]} 62. Kxe6 {[%emt 0:00:00]} Kd4 {[%emt 0:00:00]} 63. Kf7 {[%emt 0:00:00]} Ke3 {[%emt 0:00:00]} 64. Kxg7 {[%emt 0:00:00]} Kf3 {[%emt 0:00:00]} 65. Kh6 {[%emt 0:00:00]} Kg3 {[%emt 0:00:00]} 66. g7 {[%emt 0:00:00]} 1-0

[Event "WJCC U20 Girls 2019"]
[Site "New Delhi"]
[Date "2019.10.15"]
[Round "1.44"]
[White "Abdala Cancino, Patricia Anastas"]
[Black "Dwilewicz, Katarzyna"]
[Result "0-1"]
[ECO "C54"]
[WhiteElo "1608"]
[BlackElo "2106"]
[Annotator "NA"]
[PlyCount "36"]
[EventDate "2019.10.15"]
[EventType "swiss"]
[EventCountry "IND"]
[SourceTitle "playchess.com"]
[Source "ChessBase"]
[SourceQuality "1"]
[TimeControl "40/5400+30:1800+30"]

1. e4 {[%emt 0:00:00]} e5 {[%emt 0:00:00]} 2. Nf3 {[%emt 0:00:00]} Nc6 {[%emt 0:00:00]} 3. Bc4 {[%emt 0:00:18]} Bc5 {[%emt 0:00:09]} 4. c3 {[%emt 0:00:26]} Nf6 {[%emt 0:00:12]} 5. d3 {[%emt 0:00:06]} O-O {[%emt 0:00:19]} 6. Bb3 {[%emt 0:00:16]} a6 {[%emt 0:00:50]} 7. Be3 {[%emt 0:00:39]} Ba7 {[%emt 0:07:53]} 8. Bxa7 {[%emt 0:01:10]} Rxa7 {[%emt 0:00:07]} 9. Nbd2 {[%emt 0:00:11]} d6 {[%emt 0:00:42]} 10. O-O {[%emt 0:00:20]} Ne7 {[%emt 0:01:08]} 11. Nh4 {[%emt 0:01:08]} d5 {[%emt 0:10:17]} 12. f4 {[%emt 0:02:01]} exf4 {[%emt 0:05:17]} 13. Rxf4 {[%emt 0:04:00]} Qd6 {[%emt 0:04:56]} 14. Qf1 {[%emt 0:01:43]} Ng4 {[%emt 0:16:14]} 15. Qf3 {[%emt 0:03:07]} Ne5 {[%emt 0:04:42]} 16. Qe3 {[%emt 0:02:31]} Nxd3 {[%emt 0:05:05]} 17. Rff1 {[%emt 0:01:47]} Qc5 {[%emt 0:07:13]} 18. Rf3 {[%emt 0:01:15]} c6 {[%emt 0:04:33]} 0-1

[Event "WJCC U20 Girls 2019"]
[Site "New Delhi"]
[Date "2019.10.15"]
[Round "1.45"]
[White "Katkov, Michelle"]
[Black "Du Plessis, Anika"]
[Result "*"]
[ECO "B22"]
[WhiteElo "2106"]
[BlackElo "1594"]
[Annotator "NA"]
[PlyCount "34"]
[EventDate "2019.10.15"]
[EventType "swiss"]
[EventCountry "IND"]
[SourceTitle "playchess.com"]
[Source "ChessBase"]
[SourceQuality "1"]
[TimeControl "40/5400+30:1800+30"]

1. e4 {[%emt 0:00:00]} c5 {[%emt 0:00:00]} 2. c3 {[%emt 0:00:00]} Nf6 {[%emt 0:00:00]} 3. e5 {[%emt 0:00:00]} Nd5 {[%emt 0:00:26]} 4. d4 {[%emt 0:00:00]} cxd4 {[%emt 0:01:16]} 5. cxd4 {[%emt 0:00:00]} d6 {[%emt 0:05:08]} 6. Nf3 {[%emt 0:00:04]} Nc6 {[%emt 0:01:12]} 7. Bc4 {[%emt 0:00:16]} Nb6 {[%emt 0:01:37]} 8. Bb5 {[%emt 0:00:13]} a6 {[%emt 0:00:51]} 9. Bxc6+ {[%emt 0:02:11]} bxc6 {[%emt 0:00:15]} 10. O-O {[%emt 0:02:14]} g6 {[%emt 0:01:55]} 11. Re1 {[%emt 0:07:42]} Bg7 {[%emt 0:04:03]} 12. Bg5 {[%emt 0:03:23]} d5 {[%emt 0:10:38]} 13. Nc3 {[%emt 0:09:35]} O-O {[%emt 0:03:17]} 14. Na4 {[%emt 0:08:13]} Nxa4 {[%emt 0:05:11]} 15. Qxa4 {[%emt 0:00:12]} Bd7 {[%emt 0:00:09]} 16. Qa3 {[%emt 0:10:46]} Re8 {[%emt 0:02:32]} 17. Rac1 {[%emt 0:05:34]} Bf8 {[%emt 0:00:00]} *

[Event "WJCC U20 Girls 2019"]
[Site "New Delhi"]
[Date "2019.10.15"]
[Round "1.46"]
[White "Djuric, Anja"]
[Black "Ferkova, Dominika"]
[Result "0-1"]
[ECO "B12"]
[WhiteElo "1493"]
[BlackElo "2096"]
[Annotator "NA"]
[PlyCount "41"]
[EventDate "2019.10.15"]
[EventType "swiss"]
[EventCountry "IND"]
[SourceTitle "playchess.com"]
[Source "ChessBase"]
[SourceQuality "1"]
[TimeControl "40/5400+30:1800+30"]

1. e4 {[%emt 0:00:00]} c6 {[%emt 0:00:00]} 2. d4 {[%emt 0:00:00]} d5 {[%emt 0:00:00]} 3. e5 {[%emt 0:00:00]} Bf5 {[%emt 0:00:00]} 4. Nf3 {[%emt 0:00:26]} e6 {[%emt 0:00:06]} 5. Be2 {[%emt 0:00:11]} Ne7 {[%emt 0:00:14]} 6. O-O {[%emt 0:01:01]} h6 {[%emt 0:00:24]} 7. h3 {[%emt 0:01:33]} Nd7 {[%emt 0:00:23]} 8. b3 {[%emt 0:00:58]} Bh7 {[%emt 0:02:40]} 9. Bb2 {[%emt 0:02:16]} Ng6 {[%emt 0:00:35]} 10. Nbd2 {[%emt 0:02:33]} Nf4 {[%emt 0:02:22]} 11. Re1 {[%emt 0:01:12]} Nxe2+ {[%emt 0:01:14]} 12. Rxe2 {[%emt 0:00:40]} Be7 {[%emt 0:00:19]} 13. Nf1 {[%emt 0:00:36]} O-O {[%emt 0:04:11]} 14. Rc1 {[%emt 0:08:15]} c5 {[%emt 0:05:59]} 15. c4 {[%emt 0:03:29]} dxc4 {[%emt 0:02:19]} 16. bxc4 {[%emt 0:03:44]} cxd4 {[%emt 0:01:50]} 17. Nxd4 {[%emt 0:04:01]} a6 {[%emt 0:02:06]} 18. Nb3 {[%emt 0:08:20]} Nc5 {[%emt 0:03:21]} 19. Nxc5 {[%emt 0:03:28]} Bxc5 {[%emt 0:01:11]} 20. Rd2 {[%emt 0:08:02]} Qg5 {[%emt 0:03:57]} 21. Qf3 {[%emt 0:02:53]} 0-1

[Event "WJCC U20 Girls 2019"]
[Site "New Delhi"]
[Date "2019.10.15"]
[Round "1.47"]
[White "Kairbekova, Amina"]
[Black "Reid, Caitlin"]
[Result "1-0"]
[ECO "B38"]
[WhiteElo "2096"]
[BlackElo "1489"]
[Annotator "NA"]
[PlyCount "30"]
[EventDate "2019.10.15"]
[EventType "swiss"]
[EventCountry "IND"]
[SourceTitle "playchess.com"]
[Source "ChessBase"]
[SourceQuality "1"]
[TimeControl "40/5400+30:1800+30"]

1. e4 {[%emt 0:00:00]} c5 {[%emt 0:00:00]} 2. Nf3 {[%emt 0:00:00]} Nc6 {[%emt 0:00:04]} 3. d4 {[%emt 0:00:00]} cxd4 {[%emt 0:00:12]} 4. Nxd4 {[%emt 0:00:00]} g6 {[%emt 0:00:21]} 5. c4 {[%emt 0:00:00]} Bg7 {[%emt 0:00:18]} 6. Be3 {[%emt 0:00:00]} e6 {[%emt 0:07:42]} 7. Nc3 {[%emt 0:03:45]} a6 {[%emt 0:02:00]} 8. Be2 {[%emt 0:02:05]} Nge7 {[%emt 0:00:41]} 9. O-O {[%emt 0:00:49]} Qc7 {[%emt 0:01:59]} 10. Kh1 {[%emt 0:03:20]} b6 {[%emt 0:05:40]} 11. f4 {[%emt 0:00:29]} Bb7 {[%emt 0:00:54]} 12. Rc1 {[%emt 0:10:22]} h5 {[%emt 0:03:58]} 13. Na4 {[%emt 0:00:44]} Nc8 {[%emt 0:14:43]} 14. Bf3 {[%emt 0:08:40]} e5 {[%emt 0:03:32]} 15. Ne2 {[%emt 0:01:51]} Bh6 {[%emt 0:10:07]} 1-0